bitfinex/quotes_SOLUSD_20240714
["timestamp","ask_amount","ask_price","bid_price","bid_amount"]
[1720938631553,17.70671781,145.34,145.29,0.7973461]
[1720938631761,11.14,145.33,145.29,0.7973461]
[1720938632349,28.84671781,145.34,145.29,11.9373461]
[1720938632562,28.84671781,145.34,145.3,0.8612126]
[1720938632879,11.14,145.33,145.27,11.14]
[1720938633046,11.14,145.31,145.28,0.87559506]
[1720938633644,11.14,145.31,145.27,11.14]
[1720938633845,11.14,145.31,145.28,0.87571006]
[1720938634768,11.14,145.31,145.27,11.14]
[1720938635148,11.14,145.31,145.28,0.87573713]
[1720938637761,11.14,145.31,145.24,16.0598]
[1720938638074,11.14,145.31,145.26,11.14]
[1720938638260,1.7205887,145.32,145.27,0.8755306]
[1720938638465,1.72060753,145.33,145.27,12.0155306]
[1720938638760,1.72055,145.32,145.27,12.0155306]
[1720938638960,12.86055,145.32,145.27,12.0155306]
[1720938639271,12.86055,145.32,145.28,0.8755084]
[1720938639482,11.14,145.32,145.28,0.8755084]
[1720938639651,12.8605422,145.33,145.28,12.0155084]
[1720938639854,17.70674258,145.34,145.28,12.0155084]
[1720938640058,27.1263,145.34,145.29,56.14]
[1720938640241,27.1263,145.34,145.3,0.87485114]
[1720938640749,18.03898583,145.38,145.31,11.14]
[1720938640950,17.31850363,145.37,145.32,57.01413984]
[1720938641164,11.14,145.37,145.33,0.87413984]
[1720938641777,11.14,145.36,145.33,0.87413984]
[1720938641980,11.14,145.36,145.32,45.87402475]
[1720938642386,1.71998558,145.38,145.32,56.14]
[1720938642557,1.7197847,145.4,145.34,11.14]
[1720938642759,1.71962842,145.41,145.35,45.8732899]
[1720938642959,1.71962842,145.41,145.36,12.01295355]
[1720938643260,1.71945413,145.42,145.36,11.14]
[1720938643455,1.71945413,145.42,145.37,45.8726812]
[1720938643659,11.14,145.41,145.37,45.8726812]
[1720938645782,1.71945413,145.42,145.37,45.8726812]
[1720938645970,11.14,145.41,145.37,45.8726812]
[1720938646358,11.14,145.41,145.37,57.0126812]
[1720938646893,11.14,145.41,145.37,56.14]
[1720938647089,11.14,145.42,145.37,56.14]
[1720938647893,1.71938552,145.43,145.37,56.14]
[1720938648077,12.85938431,145.42,145.38,0.87270453]
[1720938648968,11.14,145.42,145.38,0.87270453]
[1720938650277,1.71938577,145.43,145.38,0.87270453]
[1720938650480,11.14,145.41,145.38,0.87270453]
[1720938651567,11.14,145.41,145.37,56.14]
[1720938651767,11.14,145.41,145.37,45.0]
[1720938651983,1.71938593,145.4,145.34,6.0533]
[1720938652173,11.14,145.38,145.33,11.14]
[1720938653565,1.71973086,145.41,145.34,45.0]
[1720938653766,11.14,145.38,145.34,45.0]
[1720938655277,11.14,145.39,145.34,45.0]
[1720938655462,11.14,145.39,145.34,56.14]
[1720938655668,12.85971808,145.38,145.34,45.0]
[1720938655868,11.14,145.39,145.34,56.14]
[1720938656367,11.14,145.38,145.34,45.0]
[1720938659071,1.71970405,145.43,145.34,56.14]
[1720938659372,11.14,145.39,145.34,56.14]
[1720938659692,11.14,145.39,145.35,0.87347193]
[1720938661789,1.71970405,145.43,145.34,45.0]
[1720938661986,11.14,145.41,145.36,11.14]
[1720938662188,11.14,145.41,145.37,45.0]
[1720938662383,1.71970405,145.43,145.37,45.0]
[1720938662687,1.71970405,145.43,145.37,56.14]
[1720938662688,11.14,145.41,145.37,56.14]
[1720938663296,11.14,145.42,145.37,56.14]
[1720938664187,11.14,145.41,145.37,56.14]
[1720938664390,11.14,145.41,145.37,45.0]
[1720938664890,11.14,145.41,145.36,45.0]
[1720938665491,1.71970405,145.43,145.36,45.0]
[1720938665694,11.14,145.42,145.36,45.0]
[1720938669385,12.85929768,145.41,145.36,45.0]
[1720938669577,11.14,145.41,145.36,56.14]
[1720938671600,11.14,145.4,145.36,56.14]
[1720938672197,11.14,145.4,145.36,45.0]
[1720938672511,11.14,145.4,145.36,56.14]
[1720938674298,1.7193673,145.43,145.36,56.14]
[1720938674506,11.14,145.41,145.36,56.14]
[1720938674796,11.14,145.4,145.36,56.14]
[1720938677402,11.14,145.41,145.36,56.14]
[1720938678914,12.8594063,145.4,145.35,22.4124]
[1720938679083,11.14,145.4,145.35,33.5524]
[1720938680597,1.71961418,145.39,145.35,33.5524]
[1720938681890,12.85961418,145.39,145.35,16.3591]
[1720938682092,11.14,145.39,145.35,16.3591]
[1720938682293,11.14,145.38,145.35,16.3591]
[1720938683013,11.14,145.38,145.31,21.9021]
[1720938683213,11.14,145.38,145.33,11.14]
[1720938683506,11.14,145.39,145.34,11.14]
[1720938684293,1.71983036,145.42,145.35,11.14]
[1720938684590,11.14,145.4,145.35,11.14]
[1720938684904,1.71983036,145.42,145.35,11.14]
[1720938685202,11.14,145.4,145.36,45.0]
[1720938686202,1.71983036,145.42,145.36,56.14]
[1720938686411,11.14,145.41,145.36,56.14]
[1720938694210,11.14,145.41,145.37,0.87266348]
[1720938699692,1.71940174,145.43,145.37,0.87266348]
[1720938699908,1.71936503,145.42,145.37,0.87266348]
[1720938700218,11.14,145.41,145.37,0.87266348]
[1720938701004,11.14,145.41,145.36,56.14]
[1720938701726,1.71932069,145.43,145.36,56.14]
[1720938701919,11.14,145.41,145.36,56.14]
[1720938707419,12.8593741,145.4,145.33,0.87268001]
[1720938707714,11.14,145.4,145.35,11.14]
[1720938707919,11.14,145.39,145.35,11.14]
[1720938708296,11.14,145.4,145.36,0.87302784]
[1720938708829,1.71961883,145.42,145.36,12.01302784]
[1720938709021,11.14,145.41,145.36,12.01302784]
[1720938709626,11.14,145.41,145.36,11.14]
[1720938711503,12.85944768,145.4,145.35,11.14]
[1720938711809,11.14,145.4,145.35,11.14]
[1720938712336,12.85951002,145.39,145.31,21.9021]
[1720938712552,11.14,145.39,145.34,11.14]
[1720938713411,11.14,145.39,145.31,21.9021]
[1720938713734,1.71963909,145.38,145.31,33.0421]
[1720938713906,1.72000644,145.41,145.33,11.14]
[1720938714103,11.14,145.39,145.34,11.14]
[1720938714509,11.14,145.39,145.35,11.14]
[1720938715435,11.14,145.4,145.35,11.14]
[1720938715636,11.14,145.4,145.36,0.69084597]
[1720938716017,11.14,145.4,145.35,11.14]
[1720938716226,12.85958889,145.39,145.34,11.14]
[1720938716437,11.14,145.39,145.31,21.9021]
[1720938716636,11.14,145.39,145.34,11.14]
[1720938720420,12.8596562,145.38,145.32,45.0]
[1720938720622,11.14,145.38,145.33,11.14]
[1720938720921,11.14,145.38,145.34,45.0]
[1720938722242,11.14,145.39,145.34,56.14]
[1720938723853,11.14,145.39,145.35,0.87333867]
[1720938725645,11.14,145.39,145.34,56.14]
[1720938725834,11.14,145.37,145.32,11.14]
[1720938726352,1.71994754,145.43,145.34,11.14]
[1720938726537,4.21738063,145.42,145.35,45.0]
[1720938726740,11.14,145.39,145.35,56.14]
[1720938727450,11.14,145.4,145.35,56.14]
[1720938728958,11.14,145.39,145.35,56.14]
[1720938729451,11.14,145.39,145.36,0.87322927]
[1720938732754,11.14,145.39,145.35,0.87322927]
[1720938733053,11.14,145.39,145.36,0.87322503]
[1720938737591,12.85959124,145.38,145.32,0.87320115]
[1720938737873,11.14,145.37,145.31,21.9021]
[1720938738067,13.5356,145.4,145.31,33.0421]
[1720938738068,12.86008788,145.36,145.31,33.0421]
[1720938738379,12.86009085,145.35,145.3,11.14]
[1720938738557,12.86022496,145.34,145.29,11.14]
[1720938738887,11.14,145.34,145.29,11.14]
[1720938739489,12.86021385,145.33,145.28,15.8443]
[1720938739659,11.14,145.33,145.28,26.9843]
[1720938740691,1.72042602,145.32,145.28,26.9843]
[1720938742766,11.14,145.33,145.28,26.9843]
[1720938742985,1.72043184,145.37,145.29,0.87519522]
[1720938743193,11.14,145.33,145.29,0.87519522]
[1720938743693,11.14,145.33,145.28,26.9843]
[1720938744580,1.72042122,145.32,145.28,26.9843]
[1720938746271,12.86042122,145.32,145.28,26.9843]
[1720938746471,11.14,145.32,145.28,26.9843]
[1720938748805,1.72042195,145.37,145.28,26.9843]
[1720938748975,11.14,145.35,145.3,11.14]
[1720938749179,1.72042195,145.37,145.31,0.87467002]
[1720938749398,11.14,145.35,145.31,0.87467002]
[1720938750407,11.14,145.35,145.3,11.14]
[1720938750574,11.14,145.34,145.29,56.14]
[1720938750903,11.14,145.34,145.3,0.87455977]
[1720938751202,1.72042195,145.37,145.3,0.87455977]
[1720938751378,11.14,145.34,145.3,0.87455977]
[1720938751582,1.72042195,145.37,145.29,56.14]
[1720938751776,11.14,145.35,145.29,45.0]
[1720938751982,11.14,145.35,145.3,11.14]
[1720938752190,11.14,145.35,145.31,45.0]
[1720938752375,12.86042195,145.37,145.32,11.14]
[1720938752703,1.71998225,145.38,145.33,0.87413958]
[1720938753001,11.14,145.37,145.33,0.87413958]
[1720938753385,1.71998225,145.38,145.32,11.14]
[1720938753588,1.71998225,145.38,145.33,45.0]
[1720938753795,11.14,145.37,145.33,45.0]
[1720938754208,11.14,145.37,145.32,11.14]
[1720938754404,1.71983696,145.43,145.36,11.14]
[1720938754609,11.14,145.42,145.37,56.14]
[1720938756207,11.14,145.38,145.34,22.8802]
[1720938756417,11.14,145.38,145.34,34.0202]
[1720938757481,11.14,145.38,145.35,45.0]
[1720938757689,1.7196111,145.43,145.36,0.87325095]
[1720938757887,1.7196111,145.43,145.36,11.14]
[1720938757888,11.14,145.41,145.36,11.14]
[1720938758190,11.14,145.42,145.37,56.14]
[1720938758408,11.14,145.41,145.37,45.0]
[1720938758589,11.14,145.41,145.36,11.14]
[1720938758790,11.14,145.4,145.35,11.14]
[1720938759099,11.14,145.4,145.36,45.0]
[1720938763609,1.71930207,145.44,145.36,45.0]
[1720938763796,11.14,145.4,145.36,45.0]
[1720938765596,1.71930207,145.44,145.37,0.35409951]
[1720938765796,11.14,145.41,145.36,56.14]
[1720938766293,11.14,145.4,145.36,56.14]
[1720938767000,11.14,145.4,145.36,45.0]
[1720938767503,1.71952313,145.44,145.36,45.0]
[1720938767695,11.14,145.4,145.36,45.0]
[1720938767892,1.71952313,145.44,145.36,56.14]
[1720938768117,11.14,145.41,145.36,56.14]
[1720938770705,11.14,145.4,145.36,56.14]
[1720938773323,1.7194626,145.44,145.36,56.14]
[1720938773517,11.14,145.4,145.36,56.14]
[1720938775095,1.7194626,145.44,145.37,11.14]
[1720938775413,11.14,145.43,145.38,57.01223104]
[1720938775612,1.71921945,145.45,145.39,11.14]
[1720938775820,11.14,145.44,145.39,11.14]
[1720938780501,12.85921945,145.45,145.4,11.14]
[1720938781003,1.71921945,145.45,145.41,45.0]
[1720938781229,11.14,145.47,145.42,12.01154497]
[1720938781407,12.85890116,145.48,145.43,12.01120302]
[1720938782217,1.71871663,145.5,145.44,11.14]
[1720938782441,11.14,145.49,145.45,0.8706934]
[1720938782928,1.71871663,145.5,145.45,0.8706934]
[1720938783138,12.85871663,145.5,145.45,12.0106934]
[1720938783422,12.85871663,145.5,145.46,0.87067625]
[1720938783630,11.14,145.5,145.46,0.87067625]
[1720938785907,1.71846278,145.49,145.46,0.87067625]
[1720938786108,1.71846278,145.49,145.45,11.14]
[1720938786521,1.71846278,145.49,145.46,0.87025372]
[1720938788024,1.71846278,145.49,145.45,11.14]
[1720938788412,1.71846232,145.52,145.41,45.0]
[1720938788734,11.14,145.49,145.4,45.0]
[1720938788912,11.14,145.49,145.44,11.14]
[1720938789227,11.14,145.49,145.4,45.0]
[1720938789428,11.14,145.49,145.44,11.14]
[1720938789912,1.71846334,145.48,145.4,45.0]
[1720938790109,11.14,145.46,145.41,11.14]
[1720938790429,11.14,145.47,145.42,11.14]
[1720938791333,11.14,145.47,145.43,12.01127724]
[1720938791539,11.14,145.47,145.43,11.14]
[1720938792429,11.14,145.47,145.42,11.14]
[1720938792614,11.14,145.47,145.43,0.87131773]
[1720938793139,12.8588022,145.46,145.4,45.0]
[1720938793325,11.14,145.46,145.41,11.14]
[1720938793837,11.14,145.46,145.41,12.01132117]
[1720938794043,1.71880796,145.45,145.39,22.2327]
[1720938794213,12.85880796,145.45,145.4,11.14]
[1720938794412,1.71905241,145.44,145.4,11.14]
[1720938795114,1.7190528,145.49,145.4,11.14]
[1720938795314,7.87890915,145.48,145.39,15.6103]
[1720938795515,7.87890915,145.48,145.39,26.7503]
[1720938795736,11.14,145.45,145.4,11.14]
[1720938796036,1.71905254,145.44,145.39,15.6103]
[1720938796213,1.71905254,145.44,145.36,6.3097]
[1720938796414,11.14,145.42,145.36,6.3097]
[1720938796621,12.85934501,145.41,145.36,6.3097]
[1720938796820,11.14,145.41,145.36,17.4497]
[1720938797031,11.14,145.41,145.36,11.14]
[1720938797337,11.14,145.41,145.35,16.576]
[1720938797338,1.71945816,145.4,145.35,16.576]
[1720938797547,15.1421,145.45,145.33,11.14]
[1720938797548,11.14,145.38,145.33,11.14]
[1720938798824,11.14,145.39,145.34,11.14]
[1720938799429,1.71976261,145.38,145.34,11.14]
[1720938800135,11.14,145.39,145.34,11.14]
[1720938800320,1.71978847,145.42,145.34,11.14]
[1720938800526,11.14,145.39,145.34,11.14]
[1720938800936,1.71978304,145.38,145.35,0.87366172]
[1720938801122,1.71978304,145.38,145.34,11.14]
[1720938801726,11.14,145.39,145.34,11.14]
[1720938801926,1.71978285,145.38,145.34,11.14]
[1720938802128,11.14,145.39,145.34,11.14]
[1720938802327,11.14,145.4,145.35,11.14]
[1720938802728,1.71962916,145.39,145.35,11.14]
[1720938803339,11.14,145.4,145.35,11.14]
[1720938803720,11.14,145.4,145.32,6.3097]
[1720938803926,11.14,145.4,145.35,11.14]
[1720938805345,11.14,145.41,145.36,56.14]
[1720938805643,11.14,145.41,145.36,11.14]
[1720938805847,11.14,145.4,145.33,45.0]
[1720938806045,11.14,145.4,145.35,11.14]
[1720938806245,11.14,145.4,145.36,45.0]
[1720938806422,1.71971532,145.42,145.37,11.14]
[1720938806629,11.14,145.42,145.37,12.01287895]
[1720938806844,11.14,145.42,145.37,11.14]
[1720938807042,1.71927466,145.41,145.37,11.14]
[1720938807853,11.14,145.4,145.36,45.0]
[1720938808550,11.14,145.4,145.35,11.14]
[1720938808752,11.14,145.4,145.36,11.14]
[1720938809346,11.14,145.41,145.37,0.87286583]
[1720938809651,11.14,145.41,145.36,11.14]
[1720938810051,11.14,145.4,145.35,11.14]
[1720938810254,11.14,145.4,145.36,45.0]
[1720938812151,1.71945242,145.45,145.39,11.14]
[1720938812369,11.14,145.46,145.41,11.14]
[1720938812663,11.14,145.47,145.42,11.14]
[1720938813953,1.71890325,145.48,145.39,11.14]
[1720938814138,11.14,145.49,145.44,11.14]
[1720938814341,11.14,145.5,145.45,11.14]
[1720938814560,1.71851292,145.49,145.45,11.14]
[1720938816267,11.14,145.5,145.45,11.14]
[1720938816268,12.8585154,145.5,145.45,11.14]
[1720938816570,1.7185154,145.5,145.45,11.14]
[1720938816738,12.8585154,145.5,145.45,11.14]
[1720938818161,1.7185154,145.5,145.45,11.14]
[1720938818353,11.14,145.5,145.45,11.14]
[1720938819663,1.71845312,145.51,145.45,11.14]
[1720938819864,11.14,145.5,145.45,11.14]
[1720938820067,1.71845527,145.49,145.45,11.14]
[1720938820368,12.85845527,145.49,145.44,11.14]
[1720938820663,11.14,145.49,145.44,11.14]
[1720938820876,16.1979,145.56,145.48,11.14]
[1720938821050,1.71784403,145.56,145.53,11.14]
[1720938821462,11.14,145.57,145.53,11.14]
[1720938821771,1.71774387,145.56,145.53,11.14]
[1720938823048,1.71774362,145.58,145.53,11.14]
[1720938823274,0.2,145.59,145.55,11.14]
[1720938823489,0.2,145.59,145.56,11.14]
[1720938824468,11.34,145.59,145.55,11.14]
[1720938824667,11.34,145.59,145.56,0.86782284]
[1720938824868,0.2,145.59,145.56,0.86782284]
[1720938825566,1.91722579,145.59,145.55,11.14]
[1720938827157,13.05722579,145.59,145.52,16.12]
[1720938827354,13.05722579,145.59,145.54,11.14]
[1720938828866,13.05722579,145.59,145.52,16.12]
[1720938828867,0.2,145.59,145.55,11.14]
[1720938829464,1.91723704,145.59,145.52,16.12]
[1720938829753,1.91723704,145.59,145.55,11.14]
[1720938831878,13.05723704,145.59,145.54,11.14]
[1720938832058,13.05723704,145.59,145.55,0.86793451]
[1720938833260,11.14,145.58,145.48,16.3724]
[1720938833466,12.85757694,145.57,145.52,11.14]
[1720938833675,1.71757668,145.56,145.52,11.14]
[1720938834381,1.71757668,145.56,145.53,11.14]
[1720938834582,1.71757688,145.57,145.53,11.14]
[1720938835277,12.85757688,145.57,145.52,11.14]
[1720938835594,11.14,145.55,145.5,11.14]
[1720938835881,12.85790876,145.54,145.49,11.14]
[1720938836182,1.71793649,145.53,145.49,11.14]
[1720938836685,11.14,145.54,145.49,11.14]
[1720938837690,1.71790986,145.53,145.49,11.14]
[1720938838175,11.14,145.54,145.49,11.14]
[1720938838978,1.71790763,145.53,145.49,11.14]
[1720938839681,1.71790763,145.53,145.45,19.04453477]
[1720938839986,1.71790763,145.53,145.49,11.14]
[1720938840786,1.71790763,145.53,145.5,0.86941527]
[1720938840987,1.71790763,145.53,145.49,11.14]
[1720938842874,11.14,145.54,145.5,0.86940872]
[1720938843076,11.14,145.54,145.5,12.00940872]
[1720938843382,1.71801095,145.53,145.5,11.14]
[1720938845687,1.71801095,145.53,145.49,11.14]
[1720938845889,1.71801095,145.53,145.5,0.86940796]
[1720938848386,1.7180112,145.56,145.5,12.00940796]
[1720938848585,11.14,145.55,145.51,0.86910417]
[1720938849401,1.7180112,145.56,145.51,0.86910417]
[1720938849571,11.14,145.55,145.51,0.86910417]
[1720938850482,1.71790728,145.54,145.51,0.86910417]
[1720938851373,1.71791398,145.54,145.51,0.86910417]
[1720938851587,1.71791334,145.54,145.51,0.86910417]
[1720938852368,11.14,145.55,145.51,0.86910417]
[1720938852568,12.6759034,145.56,145.51,12.00910417]
[1720938852789,12.6759034,145.56,145.51,11.14]
[1720938853798,18.29041494,145.57,145.52,0.86863814]
[1720938853964,11.14,145.56,145.52,45.86863814]
[1720938854170,12.85765841,145.56,145.51,11.14]
[1720938854973,11.14,145.55,145.5,11.14]
[1720938855204,1.71791676,145.54,145.5,11.14]
[1720938855487,11.14,145.55,145.51,0.5253546]
[1720938855880,11.14,145.55,145.51,0.86904234]
[1720938857191,1.71791676,145.56,145.51,0.86904234]
[1720938857377,12.85791676,145.56,145.51,0.86904234]
[1720938858395,27.7126,145.57,145.52,0.86872196]
[1720938859074,27.7126,145.57,145.52,12.00872196]
[1720938859279,11.14,145.57,145.53,0.86836377]
[1720938860083,1.91772491,145.59,145.53,0.86836377]
[1720938860288,11.14,145.58,145.53,12.00836377]
[1720938860587,1.71751023,145.57,145.53,11.14]
[1720938860783,1.71751023,145.57,145.51,0.86820673]
[1720938860784,12.85751023,145.57,145.52,11.14]
[1720938861001,11.14,145.57,145.52,11.14]
[1720938861381,11.14,145.57,145.53,0.86822892]
[1720938862191,11.14,145.58,145.53,12.00822892]
[1720938862412,11.14,145.58,145.54,0.86816926]
[1720938862904,1.91751939,145.59,145.54,0.86816926]
[1720938863095,11.14,145.58,145.54,0.86816926]
[1720938867408,1.71750681,145.57,145.54,0.86816926]
[1720938867716,11.14,145.57,145.53,0.86820059]
[1720938871981,1.91750767,145.59,145.53,0.86820059]
[1720938872181,11.14,145.57,145.5,6.4138]
[1720938872400,11.14,145.55,145.49,15.6811]
[1720938872610,0.2,145.59,145.49,15.6811]
[1720938872611,12.85779924,145.54,145.49,15.6811]
[1720938872901,11.14,145.54,145.49,26.8211]
[1720938873079,1.71791019,145.53,145.49,15.6811]
[1720938873282,12.85791019,145.53,145.49,15.48852776]
[1720938873480,11.14,145.53,145.48,11.14]
[1720938873681,11.14,145.53,145.46,6.1747]
[1720938873907,11.14,145.53,145.48,11.14]
[1720938874484,11.14,145.54,145.49,11.14]
[1720938874716,1.71801841,145.53,145.49,11.14]
[1720938876014,1.71801841,145.53,145.5,0.70319946]
[1720938878992,1.71801841,145.53,145.49,11.14]
[1720938880104,12.85801841,145.53,145.48,11.14]
[1720938880295,1.71809873,145.52,145.48,11.14]
[1720938881486,11.14,145.53,145.48,11.14]
[1720938881691,1.71806212,145.55,145.48,11.14]
[1720938881999,11.14,145.53,145.49,0.86952843]
[1720938882202,1.71806057,145.52,145.48,11.14]
[1720938883204,1.71806057,145.52,145.46,6.1747]
[1720938883512,17.40126256,145.51,145.43,7.19580177]
[1720938883813,17.40126256,145.51,145.41,11.14]
[1720938883814,11.14,145.46,145.41,11.14]
[1720938883997,1.53493886,145.5,145.41,11.14]
[1720938884311,1.53493886,145.5,145.44,11.14]
[1720938884613,28.54150239,145.51,145.46,11.14]
[1720938884797,28.54150239,145.51,145.47,0.87015846]
[1720938885310,28.54150239,145.51,145.43,0.87015846]
[1720938885514,28.54150239,145.51,145.46,11.14]
[1720938886103,12.85840239,145.51,145.47,0.86979957]
[1720938886292,1.71837672,145.5,145.46,11.14]
[1720938887498,12.8584033,145.51,145.46,11.14]
[1720938888111,1.7184033,145.51,145.47,12.01030385]
[1720938888312,7.96977592,145.53,145.48,0.87004439]
[1720938889015,11.14,145.52,145.48,0.87004439]
[1720938889811,1.71816867,145.54,145.49,12.00978699]
[1720938890002,12.85816867,145.54,145.5,0.86931932]
[1720938892419,1.71816867,145.54,145.5,0.86931932]
[1720938892617,1.71801235,145.55,145.51,11.14]
[1720938894118,12.85801235,145.55,145.47,6.1072]
[1720938894310,11.14,145.54,145.48,45.0]
[1720938894520,11.14,145.54,145.49,11.14]
[1720938895199,11.14,145.54,145.48,45.0]
[1720938895200,1.71789173,145.53,145.48,45.0]
[1720938895514,1.71789173,145.53,145.49,11.14]
[1720938895715,1.71789173,145.53,145.49,12.00948401]
[1720938896112,12.85789173,145.53,145.49,0.86948401]
[1720938896326,11.14,145.53,145.49,12.00948401]
[1720938896528,12.85802682,145.52,145.44,21.5639]
[1720938896827,11.14,145.52,145.47,11.14]
[1720938897124,1.71817108,145.51,145.46,0.86979277]
[1720938897325,1.71817108,145.51,145.47,11.14]
[1720938898815,1.71829463,145.54,145.48,0.8700893]
[1720938899016,1.71829463,145.54,145.49,0.86933121]
[1720938899222,1.7179623,145.57,145.5,11.14]
[1720938899535,11.14,145.55,145.51,0.86904679]
[1720938899732,1.71788523,145.54,145.5,11.14]
[1720938900631,11.14,145.56,145.51,0.86912652]
[1720938900943,11.14,145.56,145.51,11.14]
[1720938901239,11.14,145.56,145.52,0.86861293]
[1720938902239,11.14,145.53,145.48,11.14]
[1720938902439,12.85810944,145.52,145.48,11.14]
[1720938902742,11.14,145.52,145.48,11.14]
[1720938903835,1.71815612,145.51,145.48,11.14]
[1720938904419,1.71815612,145.51,145.47,11.14]
[1720938905259,11.14,145.52,145.47,11.14]
[1720938905456,11.14,145.52,145.48,0.76713628]
[1720938905931,11.14,145.52,145.48,11.90713628]
[1720938906117,11.14,145.52,145.48,11.14]
[1720938907338,1.71821385,145.56,145.48,11.14]
[1720938907543,11.14,145.53,145.48,11.14]
[1720938907722,1.7182106,145.52,145.48,11.14]
[1720938909248,1.71820396,145.56,145.48,11.14]
[1720938909443,11.14,145.54,145.49,12.00987167]
[1720938909648,1.71803385,145.53,145.49,11.14]
[1720938912469,1.71803385,145.53,145.48,11.14]
[1720938912470,12.85803385,145.53,145.48,11.14]
[1720938912673,11.14,145.53,145.49,0.8696219]
[1720938913468,1.71809988,145.57,145.49,0.8696219]
[1720938913647,11.14,145.53,145.49,0.8696219]
[1720938915288,1.71809884,145.52,145.49,0.8696219]
[1720938915569,11.14,145.52,145.49,0.8696219]
[1720938915766,11.14,145.52,145.48,0.86959]
[1720938915958,11.14,145.53,145.49,0.8694059]
[1720938916776,1.71810125,145.57,145.49,0.8694059]
[1720938917273,11.14,145.53,145.49,0.8694059]
[1720938921169,11.14,145.54,145.49,12.0094059]
[1720938921553,11.14,145.56,145.51,11.14]
[1720938921758,11.14,145.56,145.52,0.86876777]
[1720938922573,11.14,145.55,145.52,0.86876777]
[1720938922797,11.14,145.56,145.51,12.00876777]
[1720938922974,11.14,145.56,145.52,0.86870842]
[1720938923279,11.14,145.55,145.5,12.00870842]
[1720938923574,11.14,145.55,145.5,0.86870842]
[1720938923744,11.14,145.55,145.5,57.00870842]
[1720938925573,11.14,145.56,145.5,45.86870842]
[1720938925777,12.8578333,145.55,145.5,12.00870842]
[1720938926075,1.71783322,145.54,145.5,11.14]
[1720938926570,12.85783322,145.54,145.49,27.2939]
[1720938926766,11.14,145.54,145.49,27.2939]
[1720938926970,11.14,145.54,145.5,0.86898928]
[1720938927364,12.85791937,145.53,145.47,0.86918866]
[1720938927565,11.14,145.53,145.48,11.14]
[1720938927765,1.71802597,145.57,145.49,0.86944411]
[1720938927967,11.14,145.53,145.49,0.86944411]
[1720938928155,1.71802597,145.57,145.49,0.86944411]
[1720938928356,11.14,145.54,145.49,12.00944411]
[1720938928770,11.14,145.54,145.5,0.8693431]
[1720938929074,1.71802597,145.57,145.5,0.8693431]
[1720938929254,1.71802597,145.57,145.5,12.0093431]
[1720938929255,11.14,145.55,145.5,12.0093431]
[1720938929462,1.71797222,145.54,145.5,11.14]
[1720938930380,12.85797222,145.54,145.47,0.8693155]
[1720938930579,11.14,145.54,145.49,11.14]
[1720938930869,11.14,145.54,145.5,0.86931665]
[1720938931963,11.14,145.55,145.5,12.00931665]
[1720938932272,11.14,145.55,145.51,12.00895397]
[1720938932478,1.7179759,145.57,145.51,11.14]
[1720938932479,11.14,145.56,145.51,11.14]
[1720938932660,1.7178291,145.55,145.51,11.14]
[1720938933056,1.71782938,145.57,145.52,0.86897269]
[1720938933257,1.71761684,145.58,145.54,11.14]